fUSD/lending_fUSD_20250702
["ID","MTS","AMOUNT","RATE_DAILY","PERIOD"]
[368983896,1751424647142,-490.0,0.00016972,2]
[368983897,1751424647158,-490.0,0.00016972,2]
[368983898,1751424647169,-490.0,0.00016972,2]
[368983899,1751424647183,-490.0,0.00016972,2]
[368983900,1751424647193,-492.82307799,0.00016972,2]
[368983901,1751424647202,-490.0,0.00016972,2]
[368983902,1751424647213,-490.0,0.00016972,2]
[368983903,1751424647394,-490.0,0.00016972,2]
[368983904,1751424647414,-490.0,0.00016972,2]
[368983905,1751424647423,-490.0,0.00016972,2]
[368983906,1751424647433,-490.0,0.00016972,2]
[368983907,1751424647442,-490.0,0.00016972,2]
[368983908,1751424647452,-490.0,0.00016972,2]
[368983909,1751424647462,-490.0,0.00016972,2]
[368983910,1751424647471,-490.0,0.00016972,2]
[368983911,1751424647480,-490.0,0.00016972,2]
[368983912,1751424647489,-490.0,0.00016972,2]
[368983913,1751424647499,-490.0,0.00016972,2]
[368983914,1751424647509,-490.0,0.00016972,2]
[368983915,1751424647518,-490.0,0.00016972,2]
[368983916,1751424647527,-490.0,0.00016972,2]
[368983917,1751424647537,-490.0,0.00016972,2]
[368983918,1751424647546,-573.97,0.00016972,2]
[368983919,1751424647556,-490.0,0.00016972,2]
[368983920,1751424647565,-490.0,0.00016972,2]
[368983921,1751424647575,-490.0,0.00016972,2]
[368983922,1751424647585,-490.66,0.00016972,2]
[368983923,1751424647594,-490.0,0.00016972,2]
[368983924,1751424647603,-600.23,0.00016972,2]
[368983925,1751424647613,-490.0,0.00016972,2]
[368983926,1751424647623,-490.0,0.00016972,2]
[368983927,1751424647633,-490.0,0.00016972,2]
[368983928,1751424647642,-490.0,0.00016972,2]
[368983929,1751424647651,-1087.29,0.00016972,2]
[368983930,1751424647661,-490.0,0.00016972,2]
[368983931,1751424647670,-490.0,0.00016972,2]
[368983932,1751424647679,-490.0,0.00016972,2]
[368983933,1751424647689,-490.0,0.00016972,2]
[368983934,1751424647698,-490.0,0.00016972,2]
[368983935,1751424647707,-490.0,0.00016972,2]
[368983936,1751424647716,-156.94,0.00016972,2]
[368983937,1751424647726,-490.0,0.00016972,2]
[368983938,1751424647735,-226.99703497,0.00016972,2]
[368983939,1751424647744,-490.0,0.00016972,2]
[368983940,1751424647754,-490.0,0.00016972,2]
[368983941,1751424647763,-490.0,0.00016972,2]
[368983942,1751424647772,-967.94,0.00016972,2]
[368983943,1751424647781,-490.0,0.00016972,2]
[368983944,1751424647790,-490.0,0.00016972,2]
[368983945,1751424647800,-490.0,0.00016972,2]
[368983946,1751424647809,-490.0,0.00016972,2]
[368983947,1751424647818,-490.0,0.00016972,2]
[368983948,1751424647828,-490.0,0.00016972,2]
[368983949,1751424647837,-552.55,0.00016972,2]
[368983950,1751424647847,-490.0,0.00016972,2]
[368983951,1751424647856,-490.0,0.00016972,2]
[368983952,1751424647865,-490.0,0.00016972,2]
[368983953,1751424647875,-490.0,0.00016972,2]
[368983954,1751424647885,-490.0,0.00016972,2]
[368983955,1751424647894,-490.0,0.00016972,2]
[368983956,1751424647903,-490.0,0.00016972,2]
[368983957,1751424647915,-490.0,0.00016972,2]
[368983958,1751424647926,-458.62312976,0.00016972,2]
[368983959,1751424647937,-490.0,0.00016972,2]
[368983960,1751424647947,-490.0,0.00016972,2]
[368983961,1751424647957,-490.0,0.00016972,2]
[368983962,1751424647966,-490.0,0.00016972,2]
[368983963,1751424647975,-490.0,0.00016972,2]
[368983964,1751424647985,-490.0,0.00016972,2]
[368983965,1751424647995,-490.0,0.00016972,2]
[368983966,1751424648004,-534.83928158,0.00016972,2]
[368983967,1751424648014,-490.0,0.00016972,2]
[368983968,1751424648024,-490.0,0.00016972,2]
[368983969,1751424648034,-1102.393453,0.00016972,2]
[368983970,1751424648044,-1102.393453,0.00016972,2]
[368983971,1751424648054,-490.0,0.00016972,2]
[368983972,1751424648064,-490.0,0.00016972,2]
[368983973,1751424648075,-490.0,0.00016972,2]
[368983974,1751424648085,-490.0,0.00016972,2]
[368983975,1751424648095,-490.0,0.00016972,2]
[368983976,1751424648105,-543.18,0.00016972,2]
[368983977,1751424648114,-490.0,0.00016972,2]
[368983978,1751424648124,-490.0,0.00016972,2]
[368983979,1751424648134,-490.0,0.00016972,2]
[368983980,1751424648144,-598.82,0.00016972,2]
[368983981,1751424648154,-3257.49,0.00016972,2]
[368983982,1751424648164,-997.82,0.00016972,2]
[368983983,1751424648174,-490.0,0.00016972,2]
[368983984,1751424648187,-382.82332946,0.00016972,2]
[368983985,1751424648197,-490.0,0.00016972,2]
[368983986,1751424648208,-490.0,0.00016972,2]
[368983987,1751424648219,-490.0,0.00016972,2]
[368983988,1751424648230,-490.0,0.00016972,2]
[368983989,1751424648240,-490.0,0.00016972,2]
[368983990,1751424648251,-523.68,0.00016972,2]
[368983991,1751424648261,-490.0,0.00016972,2]
[368983992,1751424648271,-490.0,0.00016972,2]
[368983993,1751424648282,-490.0,0.00016972,2]
[368983994,1751424648292,-490.0,0.00016972,2]
[368983995,1751424648302,-490.0,0.00016972,2]
[368983996,1751424648313,-490.0,0.00016972,2]
[368983997,1751424648322,-490.0,0.00016972,2]
[368983998,1751424648332,-490.0,0.00016972,2]
[368983999,1751424648344,-490.0,0.00016972,2]
[368984000,1751424648353,-490.0,0.00016972,2]
[368984001,1751424648363,-490.0,0.00016972,2]
[368984002,1751424648372,-490.0,0.00016972,2]
[368984003,1751424648382,-5654.48,0.00016972,2]
[368984004,1751424648392,-490.0,0.00016972,2]
[368984005,1751424648401,-490.0,0.00016972,2]
[368984006,1751424648411,-490.0,0.00016972,2]
[368984007,1751424648421,-742.93,0.00016972,2]
[368984008,1751424648430,-490.0,0.00016972,2]
[368984009,1751424648440,-1245.32,0.00016972,2]
[368984010,1751424648449,-592.99,0.00016972,2]
[368984011,1751424648459,-490.0,0.00016972,2]
[368984012,1751424648468,-596.94,0.00016972,2]
[368984013,1751424648478,-1406.26,0.00016972,2]
[368984014,1751424648487,-462.63320612,0.00016972,2]
[368984015,1751424648498,-490.0,0.00016972,2]
[368984016,1751424648507,-1235.46,0.00016972,2]
[368984017,1751424648517,-826.58,0.00016972,2]
[368984018,1751424648527,-490.0,0.00016972,2]
[368984019,1751424648536,-351.31267071,0.00016972,2]
[368984020,1751424648546,-360.53534594,0.00016972,2]
[368984021,1751424648561,-709.94465406,0.00016972,2]
[368984022,1751424648571,-490.0,0.00016972,2]
[368984023,1751424648580,-601.22,0.00016972,2]
[368984024,1751424648590,-1699.22,0.00016972,2]
[368984025,1751424648599,-490.0,0.00016972,2]
[368984026,1751424648608,-490.0,0.00016972,2]
[368984027,1751424648618,-1000.0,0.00016972,2]
[368984028,1751424648627,-490.0,0.00016972,2]
[368984029,1751424648637,-1055.15009856,0.00016972,2]
[368984030,1751424648650,-1736.62990144,0.00016972,2]
[368984031,1751424648660,-240.45987546,0.00016972,2]
[368984032,1751424648670,-210.90490301,0.00016972,2]
[368984033,1751424648679,-490.0,0.00016972,2]
[368984034,1751424648689,-1233.86,0.00016972,2]
[368984035,1751424648698,-490.0,0.00016972,2]
[368984036,1751424648708,-490.0,0.00016972,2]
[368984037,1751424648717,-576.77971337,0.00016972,2]
[368984038,1751424648726,-490.0,0.00016972,2]
[368984039,1751424648736,-490.0,0.00016972,2]
[368984040,1751424648745,-490.0,0.00016972,2]
[368984041,1751424648754,-607.87,0.00016972,2]
[368984042,1751424648765,-250.07461187,0.00016972,2]
[368984043,1751424648775,-490.0,0.00016972,2]
[368984044,1751424648784,-2173.58,0.00016972,2]
[368984045,1751424648793,-490.0,0.00016972,2]
[368984046,1751424648803,-1775.7,0.00016972,2]
[368984047,1751424648812,-490.0,0.00016972,2]
[368984048,1751424648823,-490.0,0.00016972,2]
[368984049,1751424648833,-490.0,0.00016972,2]
[368984050,1751424648843,-490.0,0.00016972,2]
[368984051,1751424648854,-1125.87,0.00016972,2]
[368984052,1751424648863,-151.0,0.00016973,2]
[368984053,1751424648873,-666.0,0.00016973,2]
[368984054,1751424648883,-428.105897,0.00016973,2]
[368984055,1751424648893,-428.105898,0.00016973,2]
[368984056,1751424648902,-1328.23,0.00016973,2]
[368984057,1751424648912,-171.499816,0.00016973,2]
[368984058,1751424648922,-171.499812,0.00016973,2]
[368984059,1751424648931,-490.0,0.00016973,2]
[368984060,1751424648940,-1285.67,0.00016973,2]
[368984061,1751424648950,-218.13435159,0.00016973,2]
[368984062,1751424648963,-605.70812265,0.00016973,2]
[368984063,1751424649017,-528.97195957,0.00016438,2]
[368984064,1751424649027,-573.43340791,0.00016973,2]
[368984089,1751425122274,651.0,0.0002739,120]
[368984095,1751425181836,328.0,0.0002739,120]
[368984110,1751425361996,1002.0,0.0002739,120]
[368984111,1751425444210,981.89608498,0.00027397,120]
[368984125,1751425770411,154.45,0.00013699,2]
[368984126,1751425786246,490.0,0.00027397,120]
[368984127,1751425786504,571.76216585,0.00027397,120]
[368984133,1751425832184,-502.0,0.00015575,2]
[368984134,1751425832194,-295.68,0.00015646,2]
[368984135,1751425832204,-247.4,0.00015691,2]
[368984136,1751425832214,-1000.0,0.00015795,2]
[368984137,1751425832225,-200.0,0.00015823,7]
[368984138,1751425832235,-1500.0,0.00015947,2]
[368984139,1751425832245,-201.123708,0.00016,2]
[368984140,1751425832255,-250.0,0.00016135,2]
[368984141,1751425832264,-2245.35112753,0.00016323,2]
[368984142,1751425832273,-300.0,0.00016338,2]
[368984143,1751425832283,-575.75048792,0.00016338,2]
[368984144,1751425832293,-575.75048792,0.00016338,2]
[368984145,1751425832302,-167.83,0.00016376,2]
[368984146,1751425832311,-207.4,0.00016428,2]
[368984147,1751425832320,-7151.0,0.00016435,2]
[368984148,1751425832330,-156.0,0.00016435,2]
[368984149,1751425832340,-858.0,0.00016435,2]
[368984150,1751425832349,-300.0,0.00016436,2]
[368984151,1751425832358,-550.0,0.00016437,2]
[368984152,1751425832368,-495.25819827,0.00016438,2]
[368984153,1751425832377,-490.0,0.00016438,2]
[368984154,1751425832387,-490.0,0.00016438,2]
[368984155,1751425832396,-490.0,0.00016438,2]
[368984156,1751425832405,-490.0,0.00016438,2]
[368984157,1751425832415,-360.49187775,0.00016438,2]
[368984158,1751425832424,-490.0,0.00016438,2]
[368984159,1751425832433,-622.34886035,0.00016438,2]
[368984160,1751425832442,-490.0,0.00016438,2]
[368984161,1751425832451,-490.0,0.00016438,2]
[368984162,1751425832461,-490.0,0.00016438,2]
[368984163,1751425832471,-490.0,0.00016438,2]
[368984164,1751425832480,-490.0,0.00016438,2]
[368984165,1751425832489,-490.0,0.00016438,2]
[368984166,1751425832498,-490.0,0.00016438,2]
[368984167,1751425832507,-490.0,0.00016438,2]
[368984168,1751425832517,-490.0,0.00016438,2]
[368984169,1751425832527,-490.0,0.00016438,2]
[368984170,1751425832536,-357.85853773,0.00016438,2]
[368984171,1751425832546,-490.0,0.00016438,2]
[368984172,1751425832555,-490.0,0.00016438,2]
[368984173,1751425832565,-490.0,0.00016438,2]
[368984174,1751425832574,-490.0,0.00016438,2]
[368984175,1751425832583,-490.0,0.00016438,2]
[368984176,1751425832593,-225.25966921,0.00016438,2]
[368984177,1751425832605,-264.74033079,0.00016438,2]
[368984178,1751425832614,-115.89420044,0.00016438,2]
[368984179,1751425832635,-374.10579956,0.00016438,2]
[368984180,1751425832647,-490.0,0.00016438,2]
[368984181,1751425832656,-490.0,0.00016438,2]
[368984182,1751425832665,-490.0,0.00016438,2]
[368984183,1751425832675,-490.0,0.00016438,2]
[368984184,1751425832685,-490.0,0.00016438,2]
[368984185,1751425832695,-500.0,0.00016438,2]
[368984186,1751425832704,-490.0,0.00016438,2]
[368984187,1751425832712,-490.0,0.00016438,2]
[368984188,1751425832724,-627.23,0.00016438,2]
[368984189,1751425832733,-490.0,0.00016438,2]
[368984190,1751425832742,-490.0,0.00016438,2]
[368984191,1751425832751,-516.31093509,0.00016438,2]
[368984192,1751425832759,-490.0,0.00016438,2]
[368984193,1751425832768,-490.0,0.00016438,2]
[368984194,1751425832776,-446.36050544,0.00016438,2]
[368984195,1751425832786,-490.0,0.00016438,2]
[368984196,1751425832795,-310.61508793,0.00016438,2]
[368984197,1751425832804,-490.0,0.00016438,2]
[368984198,1751425832813,-799.09796021,0.00016453,2]
[368984199,1751425832823,-836.11932155,0.00016534,2]
[368984201,1751425832832,-502.0,0.00016603,2]
[368984203,1751425832841,-2534.1065264,0.0001661,2]
[368984205,1751425832850,-202.0,0.0001661,2]
[368984207,1751425832859,-791.03359528,0.0001661,2]
[368984210,1751425832875,-518.23205708,0.0001661,2]
[368984212,1751425832884,-173.78129922,0.00016612,2]
[368984214,1751425832893,-150.0,0.00016628,2]
[368984215,1751425832902,-150.0,0.00016628,2]
[368984217,1751425832911,-150.0,0.00016628,2]
[368984220,1751425832921,-259.70661332,0.00016628,2]
[368984223,1751425832930,-150.0,0.00016628,2]
[368984226,1751425832939,-151.69135057,0.00016628,2]
[368984229,1751425832948,-150.0,0.00016628,2]
[368984232,1751425832958,-239.758365,0.00016633,2]
[368984235,1751425832966,-1309.26565224,0.00016682,2]
[368984238,1751425832975,-283.53672282,0.00016687,2]
[368984240,1751425832984,-151.51042799,0.00016687,2]
[368984242,1751425832993,-500.0,0.00016687,2]
[368984244,1751425833002,-500.0,0.00016687,2]
[368984246,1751425833011,-569.97546526,0.00016687,2]
[368984247,1751425833020,-151.0,0.00016687,2]
[368984249,1751425833030,-151.0,0.00016687,2]
[368984251,1751425833039,-315.87933983,0.00016687,2]
[368984254,1751425833049,-151.0,0.00016687,2]
[368984256,1751425833059,-151.0,0.00016687,2]
[368984257,1751425833068,-151.0,0.00016687,2]
[368984259,1751425833078,-151.0,0.00016687,2]
[368984261,1751425833087,-151.0,0.00016687,2]
[368984263,1751425833097,-151.0,0.00016687,2]
[368984265,1751425833106,-151.0,0.00016687,2]
[368984267,1751425833116,-151.0,0.00016687,2]
[368984270,1751425833125,-151.0,0.00016687,2]
[368984271,1751425833135,-151.0,0.00016687,2]
[368984273,1751425833144,-151.0,0.00016687,2]
[368984275,1751425833154,-151.0,0.00016687,2]
[368984277,1751425833163,-151.0,0.00016687,2]
[368984280,1751425833173,-151.0,0.00016687,2]
[368984281,1751425833182,-151.0,0.00016687,2]
[368984283,1751425833191,-151.0,0.00016687,2]
[368984286,1751425833202,-151.0,0.00016687,2]
[368984287,1751425833211,-151.0,0.00016687,2]
[368984289,1751425833220,-151.0,0.00016687,2]
[368984291,1751425833230,-492.02572806,0.00016697,2]
[368984293,1751425833240,-923.79,0.00016697,2]
[368984295,1751425833249,-183.06445832,0.00016697,2]
[368984297,1751425833259,-498.85311054,0.00016697,2]
[368984299,1751425833269,-458.29632216,0.00016697,2]
[368984301,1751425833278,-498.92406397,0.00016697,2]
[368984303,1751425833288,-491.75345562,0.00016697,2]
[368984305,1751425833298,-491.4126663,0.00016697,2]
[368984307,1751425833308,-514.17127332,0.00016697,2]
[368984309,1751425833317,-505.00104888,0.00016697,2]
[368984311,1751425833327,-490.0,0.00016697,2]
[368984313,1751425833336,-490.5458396,0.00016697,2]
[368984315,1751425833348,-490.0,0.00016697,2]
[368984317,1751425833358,-492.60944425,0.00016697,2]
[368984319,1751425833367,-493.45068026,0.00016697,2]
[368984321,1751425833377,-491.75212434,0.00016697,2]
[368984323,1751425833387,-491.71124597,0.00016697,2]
[368984325,1751425833397,-490.0,0.00016697,2]
[368984327,1751425833407,-495.42053231,0.00016697,2]
[368984329,1751425833416,-492.68213982,0.00016697,2]
[368984331,1751425833426,-493.76396936,0.00016697,2]
[368984333,1751425833436,-490.0,0.00016697,2]
[368984335,1751425833446,-490.0,0.00016697,2]
[368984337,1751425833456,-492.26235841,0.00016697,2]
[368984339,1751425833465,-490.9530358,0.00016697,2]
[368984341,1751425833474,-371.34364885,0.00016697,2]
[368984343,1751425833484,-494.36295548,0.00016697,2]
[368984345,1751425833493,-492.21234189,0.00016697,2]
[368984347,1751425833502,-490.0,0.00016697,2]
[368984349,1751425833511,-490.0,0.00016697,2]
[368984351,1751425833521,-493.74884435,0.00016697,2]
[368984353,1751425833530,-490.0,0.00016697,2]
[368984355,1751425833539,-490.0,0.00016697,2]
[368984357,1751425833548,-495.05087355,0.00016697,2]
[368984359,1751425833558,-498.67850041,0.00016697,2]
[368984361,1751425833568,-495.15163168,0.00016697,2]
[368984363,1751425833578,-493.53301723,0.00016697,2]
[368984365,1751425833587,-495.93669771,0.00016697,2]
[368984367,1751425833598,-490.0,0.00016697,2]
[368984369,1751425833607,-490.0,0.00016697,2]
[368984371,1751425833617,-373.9,0.00016697,2]
[368984373,1751425833626,-188.89660157,0.00016697,2]
[368984375,1751425833636,-498.82596909,0.00016698,2]
[368984377,1751425833650,-492.35283543,0.00016698,2]
[368984379,1751425833659,-497.12893131,0.00016698,2]
[368984381,1751425833669,-492.56048364,0.00016698,2]
[368984383,1751425833678,-490.0,0.00016698,2]
[368984385,1751425833687,-490.0,0.00016698,2]
[368984387,1751425833697,-495.7646506,0.00016698,2]
[368984389,1751425833706,-490.0,0.00016698,2]
[368984391,1751425833715,-201.28305368,0.00016698,2]
[368984393,1751425833725,-490.0,0.00016698,2]
[368984395,1751425833735,-490.0,0.00016698,2]
[368984397,1751425833744,-495.97099616,0.00016698,2]
[368984399,1751425833753,-490.0,0.00016698,2]
[368984401,1751425833763,-490.0,0.00016698,2]
[368984403,1751425833773,-490.0,0.00016698,2]
[368984405,1751425833782,-1289.27,0.00016698,2]
[368984407,1751425833791,-617.46811565,0.000167,6]
[368984409,1751425833804,-182.53188435,0.000167,6]
[368984411,1751425833813,-204.87,0.00016701,2]
[368984413,1751425833823,-204.87,0.00016701,2]
[368984414,1751425833832,-162.09,0.00016707,2]
[368984415,1751425833841,-2014.082,0.00016707,2]
[368984416,1751425833850,-490.0,0.0001671,2]
[368984417,1751425833858,-490.0,0.0001671,2]
[368984418,1751425833867,-490.0,0.0001671,2]
[368984419,1751425833876,-490.0,0.0001671,2]
[368984420,1751425833885,-490.0,0.0001671,2]
[368984421,1751425833894,-490.0,0.0001671,2]
[368984422,1751425833902,-490.0,0.0001671,2]
[368984423,1751425833911,-490.0,0.0001671,2]
[368984424,1751425833921,-490.0,0.0001671,2]
[368984425,1751425833929,-490.0,0.0001671,2]
[368984426,1751425833939,-490.0,0.0001671,2]
[368984427,1751425833948,-490.0,0.0001671,2]
[368984428,1751425833958,-490.0,0.0001671,2]
[368984429,1751425833967,-490.0,0.0001671,2]
[368984430,1751425833977,-490.0,0.0001671,2]
[368984432,1751425833987,-490.0,0.0001671,2]
[368984434,1751425833996,-490.0,0.0001671,2]
[368984436,1751425834005,-490.0,0.0001671,2]
[368984438,1751425834014,-490.0,0.0001671,2]
[368984440,1751425834023,-490.0,0.0001671,2]
[368984442,1751425834033,-490.0,0.0001671,2]
[368984444,1751425834043,-490.0,0.0001671,2]
[368984446,1751425834052,-1818.53,0.0001671,2]
[368984448,1751425834062,-490.0,0.0001671,2]
[368984450,1751425834071,-490.0,0.0001671,2]
[368984452,1751425834081,-490.0,0.0001671,2]
[368984454,1751425834090,-490.0,0.0001671,2]
[368984456,1751425834100,-826.18,0.0001671,2]
[368984458,1751425834109,-490.0,0.0001671,2]
[368984460,1751425834118,-490.0,0.0001671,2]
[368984462,1751425834127,-491.60526818,0.0001671,2]
[368984464,1751425834137,-490.0,0.0001671,2]
[368984466,1751425834145,-490.0,0.0001671,2]
[368984468,1751425834155,-2188.7,0.0001671,2]
[368984470,1751425834164,-523.1,0.0001671,2]
[368984472,1751425834174,-490.0,0.0001671,2]
[368984474,1751425834183,-490.0,0.0001671,2]
[368984476,1751425834192,-490.0,0.0001671,2]
[368984478,1751425834202,-490.0,0.0001671,2]
[368984480,1751425834211,-873.11,0.0001671,2]
[368984482,1751425834221,-490.0,0.0001671,2]
[368984484,1751425834231,-490.0,0.0001671,2]
[368984486,1751425834240,-490.0,0.0001671,2]
[368984488,1751425834249,-490.0,0.0001671,2]
[368984490,1751425834258,-490.0,0.0001671,2]
[368984492,1751425834267,-711.44,0.0001671,2]
[368984494,1751425834277,-168.301424,0.0001671,2]
[368984496,1751425834287,-732.692467,0.0001671,2]
[368984498,1751425834296,-490.0,0.0001671,2]
[368984500,1751425834307,-156.012426,0.0001671,2]
[368984502,1751425834316,-157.436288,0.0001671,2]
[368984504,1751425834326,-1910.64,0.0001671,2]
[368984506,1751425834335,-787.614126,0.0001671,2]
[368984508,1751425834345,-808.436336,0.0001671,2]
[368984510,1751425834354,-490.0,0.0001671,2]
[368984533,1751425834364,-490.0,0.0001671,2]
[368984536,1751425834589,-1281.91,0.0001671,2]
[368984538,1751425834599,-1441.48,0.0001671,2]
[368984540,1751425834609,-490.0,0.0001671,2]
[368984542,1751425834618,-490.0,0.0001671,2]
[368984544,1751425834627,-490.0,0.0001671,2]
[368984546,1751425834637,-490.0,0.0001671,2]
[368984548,1751425834649,-490.0,0.0001671,2]
[368984550,1751425834658,-490.0,0.0001671,2]
[368984552,1751425834667,-495.83139503,0.0001671,2]
[368984553,1751425834677,-490.0,0.0001671,2]
[368984555,1751425834686,-468.85797701,0.0001671,2]
[368984557,1751425834695,-491.23032714,0.0001671,2]
[368984559,1751425834704,-500.0,0.0001671,2]
[368984561,1751425834713,-490.0,0.0001671,2]
[368984563,1751425834724,-490.0,0.0001671,2]
[368984565,1751425834734,-490.0,0.0001671,2]
[368984567,1751425834744,-2181.75,0.0001671,2]
[368984569,1751425834754,-490.0,0.0001671,2]
[368984571,1751425834764,-490.0,0.0001671,2]
[368984573,1751425834775,-490.0,0.0001671,2]
[368984575,1751425834784,-490.0,0.0001671,2]
[368984577,1751425834794,-490.0,0.0001671,2]
[368984579,1751425834803,-490.0,0.0001671,2]
[368984581,1751425834813,-490.0,0.0001671,2]
[368984583,1751425834822,-490.0,0.0001671,2]
[368984585,1751425834830,-211.90471913,0.0001671,2]
[368984589,1751425834853,-278.09528087,0.0001671,2]
[368984591,1751425834862,-321.90471913,0.0001671,2]
[368984593,1751425834873,-168.09528087,0.0001671,2]
[368984595,1751425834882,-120.57471913,0.0001671,2]
[368984597,1751425834893,-1337.74528087,0.0001671,2]
[368984599,1751425834903,-539.81,0.0001671,2]
[368984601,1751425834912,-1499.32,0.0001671,2]
[368984603,1751425834921,-490.0,0.0001671,2]
[368984605,1751425834931,-490.0,0.0001671,2]
[368984607,1751425834940,-490.0,0.0001671,2]
[368984609,1751425834950,-490.0,0.0001671,2]
[368984611,1751425834959,-490.0,0.0001671,2]
[368984613,1751425834968,-518.34,0.0001671,2]
[368984615,1751425834978,-490.0,0.0001671,2]
[368984617,1751425834987,-772.63,0.0001671,2]
[368984619,1751425834997,-490.0,0.0001671,2]
[368984621,1751425835006,-1088.48,0.0001671,2]
[368984622,1751425835015,-665.8,0.0001671,2]
[368984623,1751425835025,-490.0,0.0001671,2]
[368984624,1751425835034,-490.0,0.0001671,2]
[368984626,1751425835044,-490.0,0.0001671,2]
[368984627,1751425835053,-222.37614392,0.0001671,2]
[368984628,1751425835064,-277.62385608,0.0001671,2]
[368984629,1751425835073,-490.0,0.0001671,2]
[368984630,1751425835082,-1049.17,0.0001671,2]
[368984631,1751425835092,-490.0,0.0001671,2]
[368984632,1751425835105,-506.58868426,0.0001671,2]
[368984634,1751425838310,-775.44931369,0.00016435,2]
[368984821,1751425840498,-847.809,0.00016435,2]
[368984843,1751425840712,-2483.74168631,0.00016435,2]
[368984845,1751425840724,-198.41131574,0.0001671,2]
[368984847,1751425840733,-2171.34,0.0001671,2]
[368984849,1751425840743,-490.0,0.0001671,2]
[368984851,1751425840753,-490.0,0.0001671,2]
[368984853,1751425840762,-490.0,0.0001671,2]
[368984855,1751425840772,-490.0,0.0001671,2]
[368984857,1751425840781,-490.0,0.0001671,2]
[368984859,1751425840791,-582.32,0.0001671,2]
[368984861,1751425840801,-2581.32,0.0001671,2]
[368984863,1751425840810,-490.0,0.0001671,2]
[368984865,1751425840820,-591.37,0.0001671,2]
[368984867,1751425840829,-984.0,0.0001671,2]
[368984869,1751425840838,-490.0,0.0001671,2]
[368984871,1751425840848,-154.582315,0.0001671,2]
[368984873,1751425840858,-363.37543,0.0001671,2]
[368984875,1751425840867,-156.544188,0.0001671,2]
[368984877,1751425840877,-490.0,0.0001671,2]
[368984879,1751425840886,-167.741468,0.0001671,2]
[368984881,1751425840896,-490.0,0.0001671,2]
[368984883,1751425840905,-490.0,0.0001671,2]
[368984885,1751425840915,-490.0,0.0001671,2]
[368984887,1751425840924,-391.037165,0.0001671,2]
[368984889,1751425840934,-730.02,0.0001671,2]
[368984891,1751425840943,-404.218169,0.0001671,2]
[368984893,1751425840952,-500.0,0.0001671,2]
[368984895,1751425840962,-490.0,0.0001671,2]
[368984897,1751425840971,-505.88666731,0.0001671,2]
[368984899,1751425840980,-490.0,0.0001671,2]
[368984901,1751425840989,-490.0,0.0001671,2]
[368984903,1751425840999,-490.0,0.0001671,2]
[368984905,1751425841008,-490.0,0.0001671,2]
[368984907,1751425841018,-984.67,0.0001671,2]
[368984909,1751425841027,-960.47,0.0001671,2]
[368984911,1751425841036,-490.0,0.0001671,2]
[368984913,1751425841048,-490.0,0.00016711,2]
[368984915,1751425841057,-500.76991411,0.00016711,2]
[368984917,1751425841067,-500.3129935,0.00016711,2]
[368984919,1751425841076,-257.11363741,0.00016711,2]
[368984921,1751425841085,-490.0,0.00016711,2]